fUSD/lending_fUSD_20260526
["ID","MTS","AMOUNT","RATE_DAILY","PERIOD"]
[423047544,1779797443000,-800.0,0.00029521,2]
[423047515,1779797443000,-215.42269777,0.00029,7]
[423047514,1779797443000,-223733.27221685,0.00029,2]
[423047523,1779797443000,-175.44,0.00029,7]
[423047521,1779797443000,-10000.0,0.00029,2]
[423047517,1779797443000,-10000.0,0.00029,2]
[423047519,1779797443000,-10000.0,0.00029,2]
[423047518,1779797443000,-10000.0,0.00029,2]
[423047516,1779797443000,-163.9,0.00029,7]
[423047520,1779797443000,-526.15439246,0.00029,2]
[423047522,1779797443000,-10000.0,0.00029,2]
[423047524,1779797443000,-316.72721458,0.00029,2]
[423047526,1779797443000,-352.99712331,0.00029085,2]
[423047527,1779797443000,-402.61,0.000291,2]
[423047577,1779797443000,-200.0,0.00029521,2]
[423047529,1779797443000,-475.81229096,0.000292,2]
[423047528,1779797443000,-786.1184789,0.000292,2]
[423047532,1779797443000,-1502.63829205,0.00029382,2]
[423047530,1779797443000,-3400.9201128,0.000292,2]
[423047533,1779797443000,-500.0,0.00029499,30]
[423047531,1779797443000,-1500.0,0.000293,7]
[423047536,1779797443000,-3400.9201128,0.000295,2]
[423047534,1779797443000,-786.1184789,0.000295,2]
[423047535,1779797443000,-475.81229096,0.000295,2]
[423047538,1779797443000,-1000.0,0.00029505,2]
[423047550,1779797443000,-800.0,0.00029521,2]
[423047539,1779797443000,-1000.0,0.00029505,2]
[423047543,1779797443000,-800.0,0.00029521,2]
[423047546,1779797443000,-800.0,0.00029521,2]
[423047525,1779797443000,-1537.63250033,0.00029085,2]
[423047571,1779797443000,-518.0,0.00029521,2]
[423047549,1779797443000,-800.0,0.00029521,2]
[423047573,1779797443000,-200.0,0.00029521,2]
[423047612,1779797443000,-383.0,0.00029521,2]
[423047614,1779797443000,-200.0,0.00029521,2]
[423047625,1779797443000,-200.0,0.00029521,2]
[423047622,1779797443000,-200.0,0.00029521,2]
[423047616,1779797443000,-200.0,0.00029521,2]
[423047624,1779797443000,-200.0,0.00029521,2]
[423047626,1779797443000,-200.0,0.00029521,2]
[423047628,1779797443000,-200.0,0.00029521,2]
[423047638,1779797443000,-200.0,0.00029521,2]
[423047639,1779797443000,-200.0,0.00029521,2]
[423047627,1779797443000,-200.0,0.00029521,2]
[423047631,1779797443000,-200.0,0.00029521,2]
[423047630,1779797443000,-200.0,0.00029521,2]
[423047620,1779797443000,-200.0,0.00029521,2]
[423047635,1779797443000,-200.0,0.00029521,2]
[423047629,1779797443000,-200.0,0.00029521,2]
[423047636,1779797443000,-200.0,0.00029521,2]
[423047633,1779797443000,-200.0,0.00029521,2]
[423047632,1779797443000,-200.0,0.00029521,2]
[423047640,1779797443000,-200.0,0.00029521,2]
[423047642,1779797443000,-200.0,0.00029521,2]
[423047646,1779797443000,-1000.0,0.000296,2]
[423047647,1779797443000,-1000.0,0.000296,2]
[423047643,1779797443000,-200.0,0.00029521,2]
[423047641,1779797443000,-200.0,0.00029521,2]
[423047644,1779797443000,-200.0,0.00029521,2]
[423047645,1779797443000,-1000.0,0.000296,2]
[423047568,1779797443000,-500.0,0.00029521,2]
[423047637,1779797443000,-200.0,0.00029521,2]
[423047608,1779797443000,-800.0,0.00029521,2]
[423047634,1779797443000,-200.0,0.00029521,2]
[423047606,1779797443000,-800.0,0.00029521,2]
[423047574,1779797443000,-200.0,0.00029521,2]
[423047610,1779797443000,-800.0,0.00029521,2]
[423047579,1779797443000,-200.0,0.00029521,2]
[423047582,1779797443000,-200.0,0.00029521,2]
[423047581,1779797443000,-200.0,0.00029521,2]
[423047583,1779797443000,-200.0,0.00029521,2]
[423047585,1779797443000,-200.0,0.00029521,2]
[423047584,1779797443000,-200.0,0.00029521,2]
[423047580,1779797443000,-200.0,0.00029521,2]
[423047588,1779797443000,-200.0,0.00029521,2]
[423047586,1779797443000,-200.0,0.00029521,2]
[423047591,1779797443000,-800.0,0.00029521,2]
[423047587,1779797443000,-200.0,0.00029521,2]
[423047589,1779797443000,-162.0,0.00029521,2]
[423047592,1779797443000,-800.0,0.00029521,2]
[423047590,1779797443000,-800.0,0.00029521,2]
[423047602,1779797443000,-800.0,0.00029521,2]
[423047618,1779797443000,-200.0,0.00029521,2]
[423047604,1779797443000,-800.0,0.00029521,2]
[423047600,1779797443000,-800.0,0.00029521,2]
[423047603,1779797443000,-800.0,0.00029521,2]
[423047598,1779797443000,-800.0,0.00029521,2]
[423047599,1779797443000,-800.0,0.00029521,2]
[423047601,1779797443000,-800.0,0.00029521,2]
[423047605,1779797443000,-800.0,0.00029521,2]
[423047593,1779797443000,-800.0,0.00029521,2]
[423047597,1779797443000,-800.0,0.00029521,2]
[423047595,1779797443000,-800.0,0.00029521,2]
[423047594,1779797443000,-800.0,0.00029521,2]
[423047596,1779797443000,-800.0,0.00029521,2]
[423047682,1779797444000,-1000.0,0.0003,2]
[423047692,1779797444000,-2239.20212513,0.00030066,2]
[423047690,1779797444000,-200.0,0.0003,2]
[423047691,1779797444000,-238.42018819,0.0003003,2]
[423047680,1779797444000,-1123.20705651,0.0003,2]
[423047681,1779797444000,-1849.37938309,0.0003,2]
[423047685,1779797444000,-200.0,0.0003,2]
[423047687,1779797444000,-200.0,0.0003,2]
[423047688,1779797444000,-200.0,0.0003,2]
[423047679,1779797444000,-54596.71197251,0.0003,10]
[423047678,1779797444000,-10000.0,0.0003,10]
[423047695,1779797444000,-475.81229096,0.000301,2]
[423047689,1779797444000,-200.0,0.0003,2]
[423047696,1779797444000,-3400.9201128,0.000301,2]
[423047709,1779797444000,-1003.42,0.00030137,2]
[423047697,1779797444000,-161.68195318,0.0003012,2]
[423047694,1779797444000,-786.1184789,0.000301,2]
[423047702,1779797444000,-2300.68999921,0.0003013,2]
[423047700,1779797444000,-1092.40112686,0.0003013,2]
[423047703,1779797444000,-205.21815941,0.0003013,2]
[423047699,1779797444000,-500.0,0.00030129,30]
[423047698,1779797444000,-500.0,0.00030129,2]
[423047701,1779797444000,-645.08980328,0.0003013,2]
[423047705,1779797444000,-500.0,0.0003013,2]
[423047715,1779797444000,-15795.47190292,0.000302,2]
[423047704,1779797444000,-246895.82743942,0.0003013,7]
[423047708,1779797444000,-369.75,0.00030137,2]
[423047707,1779797444000,-200.0,0.00030137,2]
[423047684,1779797444000,-1041.66666667,0.0003,2]
[423047693,1779797444000,-4288.93127889,0.00030077,2]
[423047686,1779797444000,-215.42269777,0.0003,7]
[423047649,1779797444000,-1000.0,0.000296,2]
[423047677,1779797444000,-25792.96763145,0.0003,7]
[423047706,1779797444000,-326.4,0.00030137,2]
[423047650,1779797444000,-505.0,0.00029736,6]
[423047648,1779797444000,-1000.0,0.000296,2]
[423047651,1779797444000,-198.0,0.00029742,30]
[423047653,1779797444000,-163.60438977,0.00029742,30]
[423047664,1779797444000,-501.4427202,0.00029883,2]
[423047665,1779797444000,-3000.0,0.000299,10]
[423047663,1779797444000,-1500.0,0.000298,10]
[423047652,1779797444000,-156.0,0.00029742,30]
[423047661,1779797444000,-475.81229096,0.000298,2]
[423047659,1779797444000,-184.57239363,0.00029799,2]
[423047658,1779797444000,-305.99101759,0.00029799,2]
[423047655,1779797444000,-203.95586346,0.00029785,7]
[423047654,1779797444000,-224.7972616,0.00029785,7]
[423047660,1779797444000,-786.1184789,0.000298,2]
[423047656,1779797444000,-226.75055677,0.00029785,7]
[423047662,1779797444000,-3400.9201128,0.000298,2]
[423047657,1779797444000,-333.22161301,0.00029799,2]
[423047669,1779797444000,-285.63250664,0.00029999,2]
[423047667,1779797444000,-500.0,0.00029999,30]
[423047668,1779797444000,-500.0,0.00029999,2]
[423047666,1779797444000,-241.19512721,0.0002999,2]
[423047670,1779797444000,-500.0,0.00029999,2]
[423047673,1779797444000,-12896.48381573,0.0003,7]
[423047671,1779797444000,-549.07981276,0.00029999,2]
[423047672,1779797444000,-234.53532054,0.00029999,2]
[423047675,1779797444000,-7578.32408507,0.0003,2]
[423047674,1779797444000,-12896.48381573,0.0003,7]
[423047676,1779797444000,-25792.96763145,0.0003,7]
[423047683,1779797444000,-165.85822296,0.0003,2]
[423047712,1779797444000,-640.0,0.000302,2]
[423047729,1779797444000,-369.14478725,0.00030688,2]
[423047711,1779797444000,-500.0,0.00030199,2]
[423047747,1779797444000,-746.49206523,0.00031059,2]
[423047750,1779797444000,-160.0,0.000312,7]
[423047749,1779797444000,-200.0,0.00031096,2]
[423047753,1779797444000,-674.39178481,0.00031265,7]
[423047745,1779797444000,-584.41660448,0.00030947,2]
[423047756,1779797444000,-168.69582177,0.00031275,2]
[423047752,1779797444000,-4288.93127889,0.00031255,2]
[423047755,1779797444000,-680.25167032,0.00031265,7]
[423047754,1779797444000,-611.86759039,0.00031265,7]
[423047751,1779797444000,-584.41660448,0.00031205,2]
[423047757,1779797444000,-231.6747203,0.00031275,7]
[423047759,1779797444000,-160.66566117,0.00031275,7]
[423047770,1779797444000,-200.73374635,0.000315,2]
[423047769,1779797444000,-503.52539104,0.00031432,2]
[423047758,1779797444000,-164.87392575,0.00031275,2]
[423047760,1779797444000,-489.66361766,0.00031275,2]
[423047762,1779797444000,-233.07833022,0.00031275,7]
[423047761,1779797444000,-293.70732531,0.00031275,7]
[423047764,1779797444000,-666.44322602,0.0003128,2]
[423047766,1779797444000,-611.98203519,0.0003128,2]
[423047767,1779797444000,-553.71718088,0.0003128,2]
[423047768,1779797444000,-3400.9201128,0.000314,2]
[423047765,1779797444000,-589.69948997,0.0003128,2]
[423047763,1779797444000,-160.26207577,0.00031275,7]
[423047771,1779797444000,-150.0,0.000315,2]
[423047773,1779797444000,-2239.20212513,0.00031622,2]
[423047775,1779797444000,-1341.12,0.00031728,120]
[423047776,1779797444000,-198.0,0.00031742,30]
[423047710,1779797444000,-244.36474557,0.00030137,2]
[423047746,1779797444000,-3400.9201128,0.00031,2]
[423047748,1779797444000,-200.57879365,0.00031082,3]
[423047774,1779797444000,-3400.9201128,0.000317,2]
[423047735,1779797444000,-1355.0,0.00030733,2]
[423047744,1779797444000,-1636.34262574,0.0003084,2]
[423047714,1779797444000,-393.904182,0.000302,2]
[423047716,1779797444000,-1176.095818,0.000302,2]
[423047721,1779797444000,-505.0,0.00030667,7]
[423047722,1779797444000,-449.59452321,0.00030673,7]
[423047727,1779797444000,-294.84974498,0.00030688,2]
[423047719,1779797444000,-150.0,0.00030341,2]
[423047772,1779797444000,-505.0,0.00031598,8]
[423047718,1779797444000,-377.6,0.00030239,2]
[423047720,1779797444000,-3400.9201128,0.000304,2]
[423047724,1779797444000,-453.50111355,0.00030673,7]
[423047726,1779797444000,-499.83241951,0.00030688,2]
[423047723,1779797444000,-407.91172693,0.00030673,7]
[423047728,1779797444000,-458.98652639,0.00030688,2]
[423047713,1779797444000,-320.095818,0.000302,2]
[423047717,1779797444000,-337.200001,0.000302,2]
[423047725,1779797444000,-244.83180883,0.00030682,2]
[423047740,1779797444000,-198.0,0.00030742,30]
[423047732,1779797444000,-219.0,0.00030733,2]
[423047736,1779797444000,-525.0,0.00030733,2]
[423047738,1779797444000,-1225.0,0.00030733,2]
[423047739,1779797444000,-584.41660448,0.0003074,2]
[423047737,1779797444000,-1272.0,0.00030733,2]
[423047743,1779797444000,-1502.63829205,0.00030827,2]
[423047733,1779797444000,-3547.0,0.00030733,2]
[423047741,1779797444000,-156.0,0.00030742,30]
[423047730,1779797444000,-3400.9201128,0.000307,2]
[423047731,1779797444000,-584.41660448,0.00030719,2]
[423047742,1779797444000,-771.24096601,0.00030748,2]
[423047734,1779797444000,-928.0,0.00030733,2]
[423047818,1779797445000,-400.0,0.00032955,2]
[423047824,1779797445000,-150.0,0.00033451,2]
[423047825,1779797445000,-505.0,0.00033459,10]
[423047816,1779797445000,-400.0,0.00032955,2]
[423047807,1779797445000,-350.52,0.00032877,2]
[423047810,1779797445000,-419.97808507,0.00032877,2]
[423047806,1779797445000,-4916.21473097,0.000328,2]
[423047814,1779797445000,-500.0,0.00032877,2]
[423047828,1779797445000,-4288.93127889,0.0003361,2]
[423047809,1779797445000,-500.0,0.00032877,2]
[423047812,1779797445000,-500.0,0.00032877,2]
[423047813,1779797445000,-500.0,0.00032877,2]
[423047821,1779797445000,-2239.20212513,0.00033179,2]
[423047826,1779797445000,-1233.28452998,0.000335,2]
[423047817,1779797445000,-400.0,0.00032955,2]
[423047823,1779797445000,-200.0,0.00033414,10]
[423047819,1779797445000,-2000.0,0.00033,7]
[423047820,1779797445000,-350.0,0.00033014,5]
[423047822,1779797445000,-500.0,0.0003326,2]
[423047829,1779797445000,-1502.63829205,0.00033717,2]
[423047831,1779797445000,-928.0,0.00033733,2]
[423047830,1779797445000,-3547.0,0.00033733,2]
[423047832,1779797445000,-1355.0,0.00033733,2]
[423047835,1779797445000,-1225.0,0.00033733,2]
[423047815,1779797445000,-400.0,0.00032955,2]
[423047837,1779797445000,-156.0,0.00033742,30]
[423047827,1779797445000,-1000.01198996,0.0003357,2]
[423047808,1779797445000,-326.4,0.00032877,2]
[423047793,1779797445000,-1502.63829205,0.00032272,2]
[423047804,1779797445000,-156.0,0.00032742,30]
[423047836,1779797445000,-198.0,0.00033742,30]
[423047777,1779797445000,-156.0,0.00031742,30]
[423047779,1779797445000,-177.31,0.000318,7]
[423047781,1779797445000,-553.54,0.00031804,2]
[423047782,1779797445000,-150.0,0.00031858,2]
[423047778,1779797445000,-78012.4298291,0.00031781,7]
[423047783,1779797445000,-764.97754399,0.00031873,2]
[423047785,1779797445000,-500.0,0.00031899,30]
[423047786,1779797445000,-1761.75175935,0.00032,2]
[423047788,1779797445000,-160.0,0.000322,12]
[423047795,1779797445000,-909.71458408,0.000323,2]
[423047784,1779797445000,-238.42018816,0.00031892,2]
[423047805,1779797445000,-917.97305278,0.00032762,2]
[423047787,1779797445000,-200.0,0.00032055,2]
[423047790,1779797445000,-6131.13403291,0.00032249,2]
[423047791,1779797445000,-5000.0,0.00032249,2]
[423047792,1779797445000,-5000.0,0.00032249,2]
[423047794,1779797445000,-2860.8492701,0.00032281,2]
[423047797,1779797445000,-163.371,0.00032377,32]
[423047796,1779797445000,-4365.827,0.00032377,32]
[423047799,1779797445000,-159.0,0.00032403,5]
[423047800,1779797445000,-4288.93127889,0.00032432,2]
[423047802,1779797445000,-384.497794,0.00032666,10]
[423047801,1779797445000,-505.0,0.00032529,9]
[423047798,1779797445000,-213.0,0.00032403,5]
[423047803,1779797445000,-198.0,0.00032742,30]
[423047789,1779797445000,-377.6,0.0003221,5]
[423047834,1779797445000,-1272.0,0.00033733,2]
[423047780,1779797445000,-177.31,0.000318,7]
[423047838,1779797445000,-238.42018816,0.00033755,2]
[423047870,1779797445000,-250.0,0.00035,7]
[423047868,1779797445000,-250.0,0.00035,7]
[423047869,1779797445000,-250.0,0.00035,7]
[423047875,1779797445000,-300.0,0.00035,7]
[423047873,1779797445000,-300.0,0.00035,7]
[423047878,1779797445000,-300.0,0.00035,7]
[423047874,1779797445000,-300.0,0.00035,7]
[423047877,1779797445000,-300.0,0.00035,7]
[423047876,1779797445000,-300.0,0.00035,7]
[423047880,1779797445000,-300.0,0.00035,7]
[423047890,1779797445000,-266.67155652,0.00035167,2]
[423047888,1779797445000,-226.24845862,0.00035156,2]
[423047889,1779797445000,-1502.63829205,0.00035162,2]
[423047879,1779797445000,-300.0,0.00035,7]
[423047881,1779797445000,-300.0,0.00035,7]
[423047883,1779797445000,-273.0,0.00035016,2]
[423047886,1779797445000,-315.0,0.000351,2]
[423047885,1779797445000,-1000.0,0.000351,2]
[423047882,1779797445000,-253.0,0.00035,7]
[423047884,1779797445000,-617.0,0.000351,2]
[423047887,1779797445000,-150.0,0.00035124,2]
[423047892,1779797445000,-200.0,0.00035196,2]
[423047896,1779797445000,-200.0,0.00035196,2]
[423047895,1779797445000,-200.0,0.00035196,2]
[423047891,1779797445000,-200.0,0.00035196,2]
[423047894,1779797445000,-200.0,0.00035196,2]
[423047893,1779797445000,-200.0,0.00035196,2]
[423047871,1779797445000,-250.0,0.00035,7]
[423047872,1779797445000,-250.0,0.00035,7]
[423047833,1779797445000,-525.0,0.00033733,2]
[423047863,1779797445000,-156.0,0.00035,7]
[423047839,1779797445000,-152.0,0.00033809,3]
[423047840,1779797445000,-292.5,0.00033844,2]
[423047842,1779797445000,-1070.96856158,0.00034095,2]
[423047852,1779797445000,-177.31,0.000348,30]
[423047841,1779797445000,-350.0,0.00033973,5]
[423047853,1779797445000,-350.0,0.00034931,5]
[423047843,1779797445000,-377.6,0.00034182,7]
[423047867,1779797445000,-250.0,0.00035,7]
[423047845,1779797445000,-505.0,0.0003439,11]
[423047846,1779797445000,-400.0,0.00034453,2]
[423047851,1779797445000,-4288.93127889,0.00034787,2]
[423047850,1779797445000,-156.0,0.00034742,30]
[423047848,1779797445000,-400.0,0.00034453,2]
[423047844,1779797445000,-500.0,0.00034217,120]
[423047847,1779797445000,-400.0,0.00034453,2]
[423047849,1779797445000,-198.0,0.00034742,30]
[423047858,1779797445000,-10150.61581423,0.00035,7]
[423047857,1779797445000,-1952.50745436,0.00035,2]
[423047861,1779797445000,-150.0,0.00035,7]
[423047860,1779797445000,-150.0,0.00035,7]
[423047856,1779797445000,-4759.36983209,0.00035,2]
[423047859,1779797445000,-53748.33701519,0.00035,7]
[423047854,1779797445000,-12896.48381573,0.00035,7]
[423047862,1779797445000,-150.0,0.00035,7]
[423047866,1779797445000,-250.0,0.00035,7]
[423047865,1779797445000,-271.0,0.00035,7]
[423047855,1779797445000,-25792.96763145,0.00035,7]
[423047864,1779797445000,-150.0,0.00035,7]
[423047941,1779797446000,-500.0,0.00035559,2]
[423047938,1779797446000,-500.0,0.00035559,2]
[423047936,1779797446000,-500.0,0.00035559,2]
[423047935,1779797446000,-500.0,0.00035559,2]
[423047931,1779797446000,-500.0,0.00035559,2]
[423047928,1779797446000,-500.0,0.00035559,2]
[423047929,1779797446000,-500.0,0.00035559,2]
[423047933,1779797446000,-500.0,0.00035559,2]
[423047930,1779797446000,-500.0,0.00035559,2]
[423047934,1779797446000,-500.0,0.00035559,2]
[423047937,1779797446000,-500.0,0.00035559,2]
[423047940,1779797446000,-500.0,0.00035559,2]
[423047960,1779797446000,-300.0,0.00035563,2]
[423047948,1779797446000,-1096.16608281,0.00035563,2]
[423047945,1779797446000,-500.0,0.00035559,2]
[423047942,1779797446000,-500.0,0.00035559,2]
[423047946,1779797446000,-500.0,0.00035559,2]
[423047939,1779797446000,-500.0,0.00035559,2]
[423047943,1779797446000,-500.0,0.00035559,2]
[423047944,1779797446000,-500.0,0.00035559,2]
[423047949,1779797446000,-300.0,0.00035563,2]
[423047951,1779797446000,-300.0,0.00035563,2]
[423047952,1779797446000,-300.0,0.00035563,2]
[423047956,1779797446000,-300.0,0.00035563,2]
[423047957,1779797446000,-300.0,0.00035563,2]
[423047932,1779797446000,-500.0,0.00035559,2]
[423047947,1779797446000,-902.4,0.00035559,2]
[423047926,1779797446000,-500.0,0.00035559,2]
[423047912,1779797446000,-505.0,0.00035321,12]
[423047925,1779797446000,-500.0,0.00035542,30]
[423047955,1779797446000,-300.0,0.00035563,2]
[423047902,1779797446000,-150.0,0.000352,30]
[423047901,1779797446000,-150.0,0.000352,30]
[423047899,1779797446000,-266.67155652,0.000352,30]
[423047897,1779797446000,-200.0,0.00035196,2]
[423047900,1779797446000,-150.0,0.000352,30]
[423047903,1779797446000,-299.0,0.000352,30]
[423047914,1779797446000,-500.0,0.00035442,30]
[423047904,1779797446000,-150.0,0.00035256,2]
[423047913,1779797446000,-289.60482248,0.00035442,2]
[423047909,1779797446000,-150.0,0.00035256,2]
[423047907,1779797446000,-150.0,0.00035256,2]
[423047906,1779797446000,-150.0,0.00035256,2]
[423047908,1779797446000,-150.0,0.00035256,2]
[423047910,1779797446000,-150.0,0.00035256,2]
[423047905,1779797446000,-150.0,0.00035256,2]
[423047911,1779797446000,-251.0,0.00035256,2]
[423047920,1779797446000,-284.0,0.000355,30]
[423047918,1779797446000,-250.0,0.000355,30]
[423047921,1779797446000,-250.0,0.00035536,7]
[423047917,1779797446000,-250.0,0.000355,30]
[423047915,1779797446000,-157.76,0.000355,30]
[423047916,1779797446000,-250.0,0.000355,30]
[423047922,1779797446000,-500.0,0.00035542,2]
[423047924,1779797446000,-357.0,0.00035542,2]
[423047923,1779797446000,-500.0,0.00035542,2]
[423047919,1779797446000,-250.0,0.000355,30]
[423047927,1779797446000,-500.0,0.00035559,2]
[423047898,1779797446000,-287.0,0.00035196,2]
[423047950,1779797446000,-300.0,0.00035563,2]
[423047953,1779797446000,-300.0,0.00035563,2]
[423047992,1779797446000,-527.56699294,0.00035563,2]
[423047993,1779797446000,-300.0,0.00035563,2]
[423047990,1779797446000,-300.0,0.00035563,2]
[423047994,1779797446000,-300.0,0.00035563,2]
[423047989,1779797446000,-1263.82495173,0.00035563,2]
[423047995,1779797446000,-300.0,0.00035563,2]
[423047998,1779797446000,-300.0,0.00035563,2]
[423047997,1779797446000,-950.21744792,0.00035563,2]
[423047996,1779797446000,-865.53028801,0.00035563,2]
[423048000,1779797446000,-309.98994128,0.00035563,2]
[423047999,1779797446000,-1148.70755237,0.00035563,2]
[423048004,1779797446000,-300.0,0.00035563,2]
[423047991,1779797446000,-344.4170137,0.00035563,2]
[423048006,1779797446000,-1633.90603547,0.00035563,2]
[423048009,1779797446000,-300.0,0.00035563,2]
[423048021,1779797446000,-300.0,0.00035563,2]
[423048015,1779797446000,-300.0,0.00035563,2]
[423048019,1779797446000,-464.43646992,0.00035563,2]
[423048011,1779797446000,-300.0,0.00035563,2]
[423048017,1779797446000,-300.0,0.00035563,2]
[423048023,1779797446000,-578.19877315,0.00035563,2]
[423048025,1779797446000,-300.0,0.00035563,2]
[423048027,1779797446000,-452.48121198,0.00035563,2]
[423048030,1779797446000,-300.0,0.00035563,2]
[423048033,1779797446000,-300.0,0.00035563,2]
[423047961,1779797446000,-493.32888988,0.00035563,2]
[423048013,1779797446000,-594.73329586,0.00035563,2]
[423047988,1779797446000,-300.0,0.00035563,2]
[423048002,1779797446000,-300.0,0.00035563,2]
[423047984,1779797446000,-300.0,0.00035563,2]
[423047985,1779797446000,-300.0,0.00035563,2]
[423047959,1779797446000,-300.0,0.00035563,2]
[423047954,1779797446000,-300.0,0.00035563,2]
[423047965,1779797446000,-300.0,0.00035563,2]
[423047963,1779797446000,-300.0,0.00035563,2]
[423047962,1779797446000,-365.72671261,0.00035563,2]
[423047972,1779797446000,-528.42557,0.00035563,2]
[423047969,1779797446000,-300.0,0.00035563,2]
[423047968,1779797446000,-300.0,0.00035563,2]
[423047966,1779797446000,-300.0,0.00035563,2]
[423047973,1779797446000,-894.55274135,0.00035563,2]
[423047964,1779797446000,-300.0,0.00035563,2]
[423047971,1779797446000,-300.0,0.00035563,2]
[423047967,1779797446000,-605.24124213,0.00035563,2]
[423047958,1779797446000,-300.0,0.00035563,2]
[423047983,1779797446000,-300.0,0.00035563,2]
[423047974,1779797446000,-593.54059839,0.00035563,2]
[423047982,1779797446000,-300.0,0.00035563,2]
[423047981,1779797446000,-300.96252262,0.00035563,2]
[423047980,1779797446000,-300.0,0.00035563,2]
[423047978,1779797446000,-302.1844563,0.00035563,2]
[423047979,1779797446000,-300.0,0.00035563,2]
[423047975,1779797446000,-313.57111469,0.00035563,2]
[423047987,1779797446000,-300.0,0.00035563,2]
[423047976,1779797446000,-726.99445071,0.00035563,2]
[423047986,1779797446000,-300.0,0.00035563,2]
[423047970,1779797446000,-300.0,0.00035563,2]
[423047977,1779797446000,-300.0,0.00035563,2]
[423048118,1779797447000,-528.42557,0.00035563,2]
[423048110,1779797447000,-300.0,0.00035563,2]
[423048112,1779797447000,-300.0,0.00035563,2]
[423048121,1779797447000,-593.54059839,0.00035563,2]
[423048116,1779797447000,-300.0,0.00035563,2]
[423048092,1779797447000,-300.0,0.00035563,2]
[423048104,1779797447000,-300.0,0.00035563,2]
[423048100,1779797447000,-300.0,0.00035563,2]
[423048102,1779797447000,-300.0,0.00035563,2]
[423048096,1779797447000,-492.59556593,0.00035563,2]
[423048119,1779797447000,-894.55274135,0.00035563,2]
[423048106,1779797447000,-300.0,0.00035563,2]
[423048114,1779797447000,-300.0,0.00035563,2]
[423048142,1779797447000,-300.0,0.00035563,2]
[423048123,1779797447000,-726.99445071,0.00035563,2]
[423048125,1779797447000,-300.0,0.00035563,2]
[423048127,1779797447000,-302.1844563,0.00035563,2]
[423048129,1779797447000,-300.0,0.00035563,2]
[423048140,1779797447000,-300.0,0.00035563,2]
[423048131,1779797447000,-302.26223881,0.00035563,2]
[423048137,1779797447000,-300.0,0.00035563,2]
[423048133,1779797447000,-300.0,0.00035563,2]
[423048135,1779797447000,-300.96252262,0.00035563,2]
[423048144,1779797447000,-300.0,0.00035563,2]
[423048147,1779797447000,-300.0,0.00035563,2]
[423048146,1779797447000,-300.0,0.00035563,2]
[423048108,1779797447000,-605.24124213,0.00035563,2]
[423048087,1779797447000,-300.0,0.00035563,2]
[423048145,1779797447000,-300.0,0.00035563,2]
[423048090,1779797447000,-300.0,0.00035563,2]
[423048035,1779797447000,-300.0,0.00035563,2]
[423048039,1779797447000,-300.0,0.00035563,2]
[423048047,1779797447000,-310.24516055,0.00035563,2]
[423048041,1779797447000,-300.0,0.00035563,2]
[423048043,1779797447000,-300.0,0.00035563,2]
[423048045,1779797447000,-484.71261076,0.00035563,2]
[423048049,1779797447000,-300.0,0.00035563,2]
[423048053,1779797447000,-300.0,0.00035563,2]